bitfinex-derivatives/quotes_BNBF0:USTF0_20260114
["timestamp","ask_amount","ask_price","bid_price","bid_amount"]
[1768399948712,0.76032676,937.47,935.95,1.5916749]
[1768399948918,0.76032676,937.46,935.95,1.5916749]
[1768399949115,0.76032676,937.45,935.95,1.5916749]
[1768399949318,0.76032676,937.44,935.95,1.5916749]
[1768399949520,0.76032676,937.43,935.95,1.5916749]
[1768399949818,0.76032676,937.42,935.95,1.5916749]
[1768399950019,0.76032676,937.41,935.95,1.5916749]
[1768399950319,0.76032676,937.4,935.95,1.5916749]
[1768399950620,0.76032676,937.39,935.95,1.5916749]
[1768399950915,0.76032676,937.38,935.95,1.5916749]
[1768399951120,0.76029925,937.37,935.95,1.5916749]
[1768399951318,0.76029925,937.36,935.95,1.5916749]
[1768399951616,0.76029925,937.35,935.95,1.5916749]
[1768399951817,0.76029925,937.34,935.92,1.5916749]
[1768399952017,0.76029925,937.33,935.92,1.5916749]
[1768399952220,0.76029925,937.32,935.92,1.5916749]
[1768399952416,0.76029925,937.31,935.92,1.5916749]
[1768399952616,0.76029925,937.3,935.92,1.5916749]
[1768399952819,0.76029925,937.29,935.92,1.5916749]
[1768399953016,0.76029925,937.28,935.92,1.5916749]
[1768399953221,0.76029925,937.27,935.92,1.5916749]
[1768399953421,0.76029925,937.26,935.26,2.6696725]
[1768399953622,0.76029925,937.25,935.26,2.6696725]
[1768399953918,0.76029925,937.24,935.26,2.6696725]
[1768399954122,0.76029925,937.23,935.26,2.6696725]
[1768399954318,0.76029925,937.22,935.26,2.6696725]
[1768399954622,0.76029925,937.21,934.4,5.339345]
[1768399954817,0.76029925,937.2,933.41,8.5488893]
[1768399955018,0.76029925,937.19,933.41,8.5488893]
[1768399955218,0.76029925,937.18,933.41,8.5488893]
[1768399955416,0.76029925,937.17,933.41,8.5488893]
[1768399955620,0.76029925,937.16,934.63,3.7024959]
[1768399955819,0.76029925,937.15,934.63,3.7024959]
[1768399956022,0.76029925,937.14,934.63,3.7024959]
[1768399956319,0.76029925,937.13,934.63,3.7024959]
[1768399956623,0.76029925,937.12,935.65,1.5867839]
[1768399956822,0.76029925,937.11,935.65,1.5867839]
[1768399957019,0.76029925,937.1,935.65,1.5867839]
[1768399957319,0.76029925,937.09,935.64,1.5867839]
[1768399957522,0.76029925,937.08,935.64,1.5867839]
[1768399957720,0.76029925,937.07,935.64,1.5867839]
[1768399957918,0.76029925,937.06,935.64,1.5867839]
[1768399958120,0.76029925,937.05,935.63,1.5867839]
[1768399958318,0.76029925,937.04,935.63,1.5867839]
[1768399958525,0.76029925,937.03,935.63,1.5867839]
[1768399958724,0.76029925,937.02,935.63,1.5867839]
[1768399958925,0.76029925,937.01,935.63,1.5867839]
[1768399959125,0.76029925,937.0,935.62,1.5867839]
[1768399959421,0.76029925,936.99,935.62,1.5867839]
[1768399959626,0.76029925,936.98,935.62,1.5867839]
[1768399959921,0.76029925,936.97,935.62,1.5867839]
[1768399960122,0.76029925,936.96,935.61,1.5867839]
[1768399960320,0.76029925,936.95,935.61,1.5867839]
[1768399960523,0.76029925,936.94,935.61,1.5867839]
[1768399960720,0.76029925,936.93,935.61,1.5867839]
[1768399960925,0.76029925,936.92,935.61,1.5867839]
[1768399961122,0.76029925,936.91,935.64,1.5867839]
[1768399961326,0.76029925,936.9,935.64,1.5867839]
[1768399961525,0.76029925,936.89,935.64,1.5867839]
[1768399961728,0.76029925,936.88,935.64,1.5867839]
[1768399962028,0.76029925,936.87,935.64,1.5867839]
[1768399962224,0.18576694,937.26,935.64,1.5867839]
[1768399962524,0.75938407,937.25,935.64,1.5867839]
[1768399962731,0.75938407,937.24,935.64,1.5867839]
[1768399962931,0.75938407,937.23,935.64,1.5867839]
[1768399963130,0.75938407,937.22,935.63,1.5867839]
[1768399963327,0.75938407,937.21,935.64,1.5867839]
[1768399963630,0.75938407,937.2,935.69,1.5867839]
[1768399963931,0.75938407,937.19,935.7,1.5867839]
[1768399964231,0.75938407,937.18,935.7,1.5867839]
[1768399964530,0.75938407,937.17,935.7,1.5867839]
[1768399964726,0.75938407,937.16,935.7,1.5867839]
[1768399964928,0.75938407,937.15,935.7,1.5867839]
[1768399965128,0.75938407,937.14,935.7,1.5867839]
[1768399965329,0.75938407,937.13,935.7,1.5867839]
[1768399965526,0.75938407,937.12,935.7,1.5867839]
[1768399965730,0.75938407,937.11,935.7,1.5867839]
[1768399965928,0.75938407,937.1,935.7,1.5867839]
[1768399966231,0.75938407,937.09,935.7,1.5867839]
[1768399966432,0.75938407,937.08,935.7,1.5867839]
[1768399966632,0.75938407,937.07,935.7,1.5867839]
[1768399966834,0.75938407,937.06,935.7,1.5867839]
[1768399967028,0.75938407,937.05,935.7,1.5867839]
[1768399967230,0.75938407,937.04,935.71,1.5867839]
[1768399967432,0.75938407,937.03,935.71,1.5867839]
[1768399967633,0.75938407,937.02,935.71,1.5867839]
[1768399967831,0.75938407,937.01,935.71,1.5867839]
[1768399968031,0.75938407,937.0,935.71,1.5867839]
[1768399968231,0.75938407,936.99,935.72,1.5867839]
[1768399968431,0.75938407,936.98,935.72,1.5867839]
[1768399968630,0.75938407,936.97,935.72,1.5867839]
[1768399968831,0.75938407,936.96,935.72,1.5867839]
[1768399969034,0.75938407,936.95,935.72,1.5867839]
[1768399969231,0.75938407,936.94,935.73,1.5867839]
[1768399969434,0.75938407,936.93,935.73,1.5867839]
[1768399969636,0.75938407,936.92,935.73,1.5867839]
[1768399969836,0.75938407,936.91,935.73,1.5867839]
[1768399970034,0.75938407,936.9,935.73,1.5867839]
[1768399970233,0.75938407,936.89,935.74,1.5867839]
[1768399970435,0.75938407,936.88,935.74,1.5867839]
[1768399970737,0.75938407,936.87,935.74,1.5867839]
[1768399970939,0.75938407,936.86,935.74,1.5867839]
[1768399971139,0.75938407,936.85,935.75,1.5867839]
[1768399971339,0.75938407,936.84,935.75,1.5867839]
[1768399971533,0.75938407,936.83,935.75,1.5867839]
[1768399971738,0.75938407,936.82,935.75,1.5867839]
[1768399971940,0.75938407,936.81,935.75,1.5867839]
[1768399972139,0.75938407,936.8,935.76,1.5867839]
[1768399972438,0.75938407,936.79,935.76,1.5867839]
[1768399972639,0.75938407,936.78,935.76,1.5867839]
[1768399972936,0.75938407,936.77,935.76,1.5867839]
[1768399973139,0.75938407,936.76,935.77,1.5867839]
[1768399973340,0.18576694,937.26,935.77,1.5867839]
[1768399973341,0.75938407,936.75,935.77,1.5867839]
[1768399973538,0.75938407,936.74,935.77,1.5867839]
[1768399973741,0.75938407,936.73,935.77,1.5867839]
[1768399973942,0.75938407,936.72,935.71,1.5867839]
[1768399974143,0.75938407,936.71,935.7,1.5867839]
[1768399974341,0.75938407,936.7,935.7,1.5867839]
[1768399974543,0.75938407,936.69,935.7,1.5867839]
[1768399974738,0.75938407,936.68,935.7,1.5867839]
[1768399975044,0.75938407,936.67,935.69,1.5867839]
[1768399975239,0.75938407,936.66,935.69,1.5867839]
[1768399975443,0.75938407,936.65,935.69,1.5867839]
[1768399975742,0.18576694,937.26,935.69,1.5867839]
[1768399975743,0.75938407,936.64,935.69,1.5867839]
[1768399975938,0.75938407,936.63,935.69,1.5867839]
[1768399976141,0.75938407,936.62,935.7,1.5867839]
[1768399976338,0.75938407,936.61,935.7,1.5867839]
[1768399976543,0.75938407,936.6,935.7,1.5867839]
[1768399976842,0.75938407,936.59,935.7,1.5867839]
[1768399977044,0.75938407,936.58,935.7,1.5867839]
[1768399977240,0.75938407,936.57,935.7,1.5867839]
[1768399977436,0.75938407,936.56,935.7,1.5867839]
[1768399977843,0.18576694,937.26,935.7,1.5867839]
[1768399979040,0.18576694,937.26,935.71,1.5867839]
[1768399980139,0.76176599,937.25,935.71,1.5867839]
[1768399980441,0.18576694,937.26,935.71,1.5867839]
[1768399980740,0.76184163,937.25,935.71,1.5867839]
[1768399980940,0.76184163,937.24,935.71,1.5867839]
[1768399981143,0.76184163,937.23,935.72,1.5867839]
[1768399981345,0.76184163,937.22,935.72,1.5867839]
[1768399981643,0.76184163,937.21,935.72,1.5867839]
[1768399981844,0.76184163,937.2,935.72,1.5867839]
[1768399982144,0.76184163,937.19,935.72,1.5867839]
[1768399982341,0.76184163,937.18,935.72,1.5867839]
[1768399982545,0.76189412,937.17,935.72,1.5867839]
[1768399982741,0.76189412,937.16,935.72,1.5867839]
[1768399982941,0.76189412,937.15,935.72,1.5867839]
[1768399983142,0.76189412,937.14,935.72,1.5867839]
[1768399983347,0.76189412,937.13,935.72,1.5867839]
[1768399983648,0.76189412,937.12,935.72,1.5867839]
[1768399983847,0.76189412,937.11,935.72,1.5867839]
[1768399984047,0.76189412,937.1,935.73,1.5867839]
[1768399984248,0.76189412,937.09,935.73,1.5867839]
[1768399984449,0.76189412,937.08,935.73,1.5867839]
[1768399984645,0.76189412,937.07,935.73,1.5867839]
[1768399984949,0.76189412,937.06,935.73,1.5867839]
[1768399985150,0.76203141,937.05,935.73,1.5867839]
[1768399985350,0.76203141,937.04,935.73,1.5867839]
[1768399985550,0.76203141,937.03,935.73,1.5867839]
[1768399985750,0.76203141,937.02,935.73,1.5867839]
[1768399985951,0.76203141,937.01,935.73,1.5867839]
[1768399986153,0.76203141,937.0,935.74,1.5867839]
[1768399986353,0.76203141,936.99,935.74,1.5867839]
[1768399986652,0.76203141,936.98,935.74,1.5867839]
[1768399986853,0.76203141,936.97,935.74,1.5867839]
[1768399987148,0.76203141,936.96,935.74,1.5867839]
[1768399987353,0.76203141,936.95,935.74,1.5867839]
[1768399987554,0.76203141,936.94,935.74,1.5867839]
[1768399987754,0.76203141,936.93,935.74,1.5867839]
[1768399987952,0.76203141,936.92,935.74,1.5867839]
[1768399988155,0.76203141,936.91,935.75,1.5867839]
[1768399988352,0.76203141,936.9,935.75,1.5867839]
[1768399988555,0.76203141,936.89,935.75,1.5867839]
[1768399988854,0.76203141,936.88,935.75,1.5867839]
[1768399989052,0.76203141,936.87,935.75,1.5867839]
[1768399989355,0.76203141,936.86,935.76,1.5867839]
[1768399989556,0.76203141,936.85,935.76,1.5867839]
[1768399989757,0.76203141,936.84,935.76,1.5867839]
[1768399989958,0.76203141,936.83,935.76,1.5867839]
[1768399990160,0.76203141,936.82,935.76,1.5867839]
[1768399990460,0.76203141,936.81,935.76,1.5867839]
[1768399990757,0.76203141,936.8,935.76,1.5867839]
[1768399990958,0.76203141,936.79,935.76,1.5867839]
[1768399991159,0.76203141,936.78,935.77,1.5867839]
[1768399991354,0.76203141,936.77,935.77,1.5867839]
[1768399991556,0.76203141,936.76,935.77,1.5867839]
[1768399991758,0.76203141,936.75,935.77,1.5867839]
[1768399991961,0.76203141,936.74,935.77,1.5867839]
[1768399992160,0.76203141,936.73,935.77,1.5867839]
[1768399992362,0.76203141,936.72,935.78,1.5867839]
[1768399992660,0.76203141,936.71,935.77,1.5867839]
[1768399992857,0.76203141,936.7,935.77,1.5867839]
[1768399993055,0.76203141,936.69,935.77,1.5867839]
[1768399993256,0.76203141,936.68,935.78,1.5867839]
[1768399993459,0.76203141,936.67,935.78,1.5867839]
[1768399993658,0.76203141,936.66,935.78,1.5867839]
[1768399993861,0.76203141,936.65,935.78,1.5867839]
[1768399994061,0.76203141,936.64,935.78,1.5867839]
[1768399994261,0.76203141,936.63,935.79,1.5867839]
[1768399994561,0.76203141,936.62,935.79,1.5867839]
[1768399994756,0.76203141,936.61,935.79,1.5867839]
[1768399995061,0.76203141,936.6,935.8,1.5867839]
[1768399995262,0.76203141,936.59,935.8,1.5867839]
[1768399995463,0.76203141,936.58,935.8,1.5867839]
[1768399995664,0.76203141,936.57,935.8,1.5867839]
[1768399995863,0.76203141,936.56,935.8,1.5867839]
[1768399996064,0.76203141,936.55,935.82,1.5867839]
[1768399996260,0.76203141,936.54,935.82,1.5867839]
[1768399996464,0.76461225,936.53,935.82,1.5867839]
[1768399996662,0.76461225,936.52,935.82,1.5867839]
[1768399996863,0.76461225,936.51,935.82,1.5867839]
[1768399997165,0.76461225,936.5,935.82,1.5867839]
[1768399997465,0.76461225,936.49,935.82,1.5867839]
[1768399997672,0.76461225,936.48,935.84,1.5867839]
[1768399997870,0.76461225,936.47,935.84,1.5867839]
[1768399998068,0.76461225,936.46,935.84,1.5867839]
[1768399998272,0.76461225,936.45,935.84,1.5867839]
[1768399998473,0.76461225,936.44,935.84,1.5867839]
[1768399998671,0.76461225,936.43,935.8,1.5867839]
[1768399998874,0.76461225,936.42,935.8,1.5867839]
[1768399999077,0.76461225,936.41,935.72,1.5867839]
[1768399999276,0.76461225,936.4,935.7,1.5867839]
[1768399999476,0.76461225,936.39,935.68,1.5867839]
[1768399999678,0.76461225,936.38,935.68,1.5867839]
[1768399999877,0.76461225,936.37,935.69,1.5867839]
[1768400000075,0.76461225,936.36,935.69,1.5867839]
[1768400000279,0.76461225,936.35,935.76,1.5867839]
[1768400000475,0.76461225,936.34,935.76,1.5867839]
[1768400000779,0.76461225,936.33,935.76,1.5867839]
[1768400001076,0.76461225,936.32,935.76,1.5867839]
[1768400001378,0.76461225,936.31,935.76,1.5867839]
[1768400001674,0.76461225,936.3,935.76,1.5867839]
[1768400001874,0.76461225,936.29,935.76,1.5867839]
[1768400002078,0.76461225,936.28,935.76,1.5867839]
[1768400002280,0.76461225,936.27,935.76,1.5867839]
[1768400002580,0.76461225,936.26,935.76,1.5867839]
[1768400002776,0.76461225,936.25,935.76,1.5867839]
[1768400002978,0.76461225,936.24,935.76,1.5867839]
[1768400003280,1.832,936.88,935.76,1.5867839]
[1768400003476,0.76481845,936.87,935.76,1.5867839]
[1768400003775,0.76481845,936.86,935.76,1.5867839]
[1768400003974,0.76481845,936.85,935.85,1.5867839]
[1768400004179,0.76481845,936.84,935.89,1.5867839]
[1768400004477,0.76481845,936.83,935.94,1.5867839]
[1768400004679,0.76481845,936.82,935.98,1.5867839]
[1768400004974,0.76481845,936.81,935.99,1.5867839]
[1768400005179,0.76481845,936.8,935.99,1.5867839]
[1768400005376,0.76481845,936.79,935.98,1.5867839]
[1768400005675,0.76481845,936.78,935.98,1.5867839]
[1768400005879,0.76481845,936.77,935.98,1.5867839]
[1768400006076,0.76481845,936.76,935.98,1.5867839]
[1768400006276,0.76481845,936.75,935.98,1.5867839]
[1768400006481,0.76481845,936.74,935.97,1.5867839]
[1768400006781,0.76481845,936.73,935.97,1.5867839]
[1768400006981,0.76481845,936.72,935.97,1.5867839]
[1768400007182,0.76481845,936.71,935.97,1.5867839]
[1768400007380,0.76481845,936.7,935.97,1.5867839]
[1768400007578,0.76481845,936.69,935.97,1.5867839]
[1768400007878,0.76481845,936.68,935.97,1.5867839]
[1768400008077,0.76481845,936.67,935.97,1.5867839]
[1768400008277,0.76481845,936.66,935.97,1.5867839]
[1768400008482,0.76481845,936.65,935.95,1.5867839]
[1768400008783,0.76481845,936.64,936.02,1.5867839]
[1768400008982,0.76481845,936.63,936.02,1.5867839]
[1768400009180,0.76481845,936.62,936.02,1.5867839]
[1768400009378,0.76481845,936.61,936.02,1.5867839]
[1768400009579,0.76481845,936.6,936.02,1.5867839]
[1768400009881,0.76481845,936.59,936.02,1.5867839]
[1768400010082,0.76481845,936.58,936.02,1.5867839]
[1768400010383,1.832,936.88,936.01,1.5867839]
[1768400010584,0.76381767,936.87,936.01,1.5867839]
[1768400010780,0.76381767,936.86,936.01,1.5867839]
[1768400011081,0.76381767,936.85,936.01,1.5867839]
[1768400011282,0.76381767,936.84,935.99,1.5867839]
[1768400011482,0.76381767,936.83,935.99,1.5867839]
[1768400011682,0.76381767,936.82,935.99,1.5867839]
[1768400011881,0.76381767,936.81,935.98,1.5867839]
[1768400012083,0.76370204,936.8,935.97,1.5867839]
[1768400012284,0.76370204,936.79,935.96,1.5867839]
[1768400012581,0.76370204,936.78,935.96,1.5867839]
[1768400012783,0.76370204,936.77,935.96,1.5867839]
[1768400012983,0.76370204,936.76,935.96,1.5867839]
[1768400013183,0.76370204,936.75,935.96,1.5867839]
[1768400013380,0.76370204,936.74,935.96,1.5867839]
[1768400013581,0.76370204,936.73,935.96,1.5867839]
[1768400013780,0.76370204,936.72,935.96,1.5867839]
[1768400013984,0.76370204,936.71,935.91,1.5867839]
[1768400014180,0.76370204,936.7,935.91,1.5867839]
[1768400014484,0.76370204,936.69,935.91,1.5867839]
[1768400014683,0.76370204,936.68,935.91,1.5867839]
[1768400014882,0.76370204,936.67,935.91,1.5867839]
[1768400015080,0.76370204,936.66,935.91,1.5867839]
[1768400015282,0.76370204,936.65,935.9,1.5867839]
[1768400015483,0.76370204,936.64,935.9,1.5867839]
[1768400015685,0.76370204,936.63,935.9,1.5867839]
[1768400015885,0.76370204,936.62,935.9,1.5867839]
[1768400016082,0.76370204,936.61,935.9,1.5867839]
[1768400016286,0.76370204,936.6,935.9,1.5867839]
[1768400016485,0.76370204,936.59,935.9,1.5867839]
[1768400016785,0.76370204,936.58,935.9,1.5867839]
[1768400017082,0.76370204,936.57,935.9,1.5867839]
[1768400017283,0.76370204,936.56,935.9,1.5867839]
[1768400017483,0.76370204,936.55,935.9,1.5867839]
[1768400017682,0.76370204,936.54,935.9,1.5867839]
[1768400017886,0.76370204,936.53,935.9,1.5867839]
[1768400018184,0.76340479,936.52,935.9,1.5867839]
[1768400018387,1.832,936.88,935.9,1.5867839]
[1768400018582,0.76340288,936.87,935.9,1.5867839]
[1768400018784,0.76340288,936.86,935.9,1.5867839]
[1768400018988,0.76340288,936.85,935.9,1.5867839]
[1768400019187,0.76340288,936.84,935.9,1.5867839]
[1768400019484,0.76340288,936.83,935.9,1.5867839]
[1768400019688,0.76340288,936.82,935.9,1.5867839]
[1768400019884,0.76340288,936.81,935.9,1.5867839]
[1768400020188,0.76340288,936.8,935.9,1.5867839]
[1768400020487,0.76340288,936.79,935.9,1.5867839]
[1768400020687,0.76340288,936.78,935.9,1.5867839]
[1768400020883,0.76340288,936.77,935.9,1.5867839]
[1768400021089,0.76340288,936.76,935.9,1.5867839]
[1768400021284,0.76340288,936.75,935.9,1.5867839]
[1768400021489,0.76340288,936.74,935.9,1.5867839]
[1768400021686,0.76340288,936.73,935.9,1.5867839]
[1768400021985,0.76340288,936.72,935.9,1.5867839]
[1768400022186,0.76340288,936.71,935.9,1.5867839]
[1768400022387,0.76340288,936.7,935.9,1.5867839]
[1768400022686,0.76340288,936.69,935.9,1.5867839]
[1768400022889,0.76340288,936.68,935.9,1.5867839]
[1768400023085,0.76340288,936.67,935.9,1.5867839]
[1768400023286,0.76340288,936.66,935.9,1.5867839]
[1768400023589,0.76340288,936.65,935.9,1.5867839]
[1768400023784,0.76340288,936.64,935.9,1.5867839]
[1768400023984,0.76340288,936.63,935.9,1.5867839]
[1768400024184,0.76340288,936.62,935.9,1.5867839]
[1768400024387,0.76340288,936.61,935.9,1.5867839]
[1768400024586,0.76340288,936.6,935.9,1.5867839]
[1768400024791,0.76340288,936.59,935.9,1.5867839]
[1768400024988,0.76340288,936.58,935.9,1.5867839]
[1768400025191,0.76340288,936.57,935.9,1.5867839]
[1768400025391,0.76340288,936.56,935.9,1.5867839]
[1768400025592,0.76340288,936.55,935.9,1.5867839]
[1768400025889,0.76340288,936.54,935.9,1.5867839]
[1768400026092,0.76340288,936.53,935.9,1.5867839]
[1768400026290,0.76340288,936.52,935.9,1.5867839]
[1768400026496,1.832,936.88,935.9,1.5867839]
[1768400026690,0.76354155,936.87,935.9,1.5867839]
[1768400026896,0.76354155,936.86,935.9,1.5867839]
[1768400027094,0.76354155,936.85,935.9,1.5867839]
[1768400027292,0.76354155,936.84,935.9,1.5867839]
[1768400027596,0.76354155,936.83,935.9,1.5867839]
[1768400027792,0.76354155,936.82,935.9,1.5867839]
[1768400027993,0.76354155,936.81,935.9,1.5867839]
[1768400028193,0.76354155,936.8,935.9,1.5867839]
[1768400028394,0.76354155,936.79,935.9,1.5867839]
[1768400028596,0.76354155,936.78,935.9,1.5867839]
[1768400028793,0.76354155,936.77,935.9,1.5867839]
[1768400028996,0.76354155,936.76,935.9,1.5867839]
[1768400029195,0.76354155,936.75,935.9,1.5867839]
[1768400029393,0.76354155,936.74,935.9,1.5867839]
[1768400029694,0.76354155,936.73,935.9,1.5867839]
[1768400029896,0.76354155,936.72,935.9,1.5867839]
[1768400030092,0.76354155,936.71,935.9,1.5867839]
[1768400030294,0.76354155,936.7,935.9,1.5867839]
[1768400030497,0.76354155,936.69,935.9,1.5867839]
[1768400030696,0.76354155,936.68,935.9,1.5867839]
[1768400030895,0.76354155,936.67,935.9,1.5867839]
[1768400031095,0.76354155,936.66,935.9,1.5867839]
[1768400031299,0.76354155,936.65,935.9,1.5867839]
[1768400031599,0.76354155,936.64,935.9,1.5867839]
[1768400031897,0.76354155,936.63,935.9,1.5867839]
[1768400032098,1.832,936.88,935.9,1.5867839]
[1768400032099,0.76354155,936.62,935.9,1.5867839]
[1768400032298,0.76354155,936.61,935.9,1.5867839]
[1768400032498,0.76354155,936.6,935.9,1.5867839]
[1768400032702,0.76354155,936.59,935.9,1.5867839]
[1768400032898,0.76354155,936.58,935.9,1.5867839]
[1768400033100,0.76354155,936.57,935.9,1.5867839]
[1768400033302,0.76354155,936.56,935.9,1.5867839]
[1768400033503,0.76354155,936.55,935.9,1.5867839]
[1768400033799,0.76354155,936.54,935.9,1.5867839]
[1768400034004,0.76354155,936.53,935.9,1.5867839]
[1768400034201,0.76354155,936.52,935.9,1.5867839]
[1768400034407,1.832,936.88,935.9,1.5867839]
[1768400034606,0.76362256,936.87,935.9,1.5867839]
[1768400034805,0.76362256,936.86,935.9,1.5867839]
[1768400035005,0.76362256,936.85,935.9,1.5867839]
[1768400035205,0.76362256,936.84,935.9,1.5867839]
[1768400035402,0.76362256,936.83,935.89,1.5867839]
[1768400035701,0.76362256,936.82,935.73,1.5867839]
[1768400035903,0.76362256,936.81,935.73,1.5867839]
[1768400036106,0.76362256,936.8,935.73,1.5867839]
[1768400036306,0.76362256,936.79,935.73,1.5867839]
[1768400036506,0.76362256,936.78,935.73,1.5867839]
[1768400036706,0.76362256,936.77,935.73,1.5867839]
[1768400036903,0.76362256,936.76,935.73,1.5867839]
[1768400037106,0.76362256,936.75,935.73,1.5867839]
[1768400037303,0.76362256,936.74,935.73,1.5867839]
[1768400037606,0.76362256,936.73,935.73,1.5867839]
[1768400037808,0.76362256,936.72,935.73,1.5867839]
[1768400038004,0.76362256,936.71,935.73,1.5867839]
[1768400038308,0.76362256,936.7,935.73,1.5867839]
[1768400038504,0.76362256,936.69,935.74,1.5867839]
[1768400038708,0.76362256,936.68,935.74,1.5867839]
[1768400039008,0.76362256,936.67,935.74,1.5867839]
[1768400039309,0.76362256,936.66,935.74,1.5867839]
[1768400039510,0.76362256,936.65,935.74,1.5867839]
[1768400039706,0.76362256,936.64,935.74,1.5867839]
[1768400039910,0.76362256,936.63,935.74,1.5867839]
[1768400040113,0.76373976,936.62,935.74,1.5867839]
[1768400040412,0.76373976,936.61,935.74,1.5867839]
[1768400040610,0.76373976,936.6,935.74,1.5867839]
[1768400040811,0.76373976,936.59,935.74,1.5867839]
[1768400041015,0.76373976,936.58,935.74,1.5867839]
[1768400041210,0.76373976,936.57,935.74,1.5867839]
[1768400041414,0.76373976,936.56,935.74,1.5867839]
[1768400041610,0.76373976,936.55,935.74,1.5867839]
[1768400041811,0.76373976,936.54,935.74,1.5867839]
[1768400042018,0.76373976,936.53,935.74,1.5867839]
[1768400042216,0.76373976,936.52,935.74,1.5867839]
[1768400042511,0.76373976,936.51,935.74,1.5867839]
[1768400042716,0.76373976,936.5,935.74,1.5867839]
[1768400042914,0.76373976,936.49,935.74,1.5867839]
[1768400043112,0.76373976,936.48,935.74,1.5867839]
[1768400043411,0.76373976,936.47,935.72,1.5867839]
[1768400043617,0.76373976,936.46,935.72,1.5867839]
[1768400043816,0.76373976,936.45,935.72,1.5867839]
[1768400044012,0.76373976,936.44,935.72,1.5867839]
[1768400044316,0.76373976,936.43,935.73,1.5867839]
[1768400044612,0.76373976,936.42,935.75,1.5867839]
[1768400044811,1.832,936.88,935.75,1.5867839]
[1768400044812,0.76373976,936.41,935.75,1.5867839]
[1768400045015,0.76373976,936.4,935.75,1.5867839]
[1768400045215,0.76373976,936.39,935.75,1.5867839]
[1768400045416,0.76373976,936.38,935.75,1.5867839]
[1768400045614,0.76373976,936.37,935.75,1.5867839]
[1768400045918,0.76373976,936.36,935.75,1.5867839]
[1768400046114,0.76373976,936.35,935.75,1.5867839]
[1768400046314,0.76373976,936.34,935.76,1.5867839]
[1768400046518,1.832,936.88,935.76,1.5867839]
[1768400046815,0.76402488,936.87,935.76,1.5867839]
[1768400047018,0.76402488,936.86,935.76,1.5867839]
[1768400047218,0.76402488,936.85,935.76,1.5867839]
[1768400047519,0.76402488,936.84,935.76,1.5867839]
[1768400047814,0.76402488,936.83,935.76,1.5867839]
[1768400048013,0.76402488,936.82,935.76,1.5867839]
[1768400048219,0.76402488,936.81,935.76,1.5867839]
[1768400048414,0.76402488,936.8,935.76,1.5867839]
[1768400048615,0.76402488,936.79,935.76,1.5867839]
[1768400048820,0.76402488,936.78,935.76,1.5867839]
[1768400049017,0.76402488,936.77,935.76,1.5867839]
[1768400049318,0.76402488,936.76,935.76,1.5867839]
[1768400049521,0.76402488,936.75,935.76,1.5867839]
[1768400049718,0.76402488,936.74,935.76,1.5867839]
[1768400049918,0.76402488,936.73,935.76,1.5867839]
[1768400050221,0.76402488,936.72,935.76,1.5867839]
[1768400050416,0.76402488,936.71,935.76,1.5867839]
[1768400050721,0.18574463,937.38,935.76,1.5867839]
[1768400050722,0.76402488,936.7,935.76,1.5867839]
[1768400051019,0.76402488,936.69,935.76,1.5867839]
[1768400051221,0.76402488,936.68,935.75,1.5867839]
[1768400051421,0.76402488,936.67,935.75,1.5867839]
[1768400051721,0.76402488,936.66,935.75,1.5867839]
[1768400051923,0.76402488,936.65,935.75,1.5867839]
[1768400052120,0.76402488,936.64,935.75,1.5867839]
[1768400052320,0.76402488,936.63,935.75,1.5867839]
[1768400052517,0.76402488,936.62,935.75,1.5867839]
[1768400052722,0.76402488,936.61,935.75,1.5867839]
[1768400052922,0.76402488,936.6,935.75,1.5867839]
[1768400053120,0.76402488,936.59,935.75,1.5867839]
[1768400053317,0.76402488,936.58,935.75,1.5867839]
[1768400053523,0.76402488,936.57,935.75,1.5867839]
[1768400053720,0.76402488,936.56,935.75,1.5867839]
[1768400053928,0.76402488,936.55,935.75,1.5867839]
[1768400054126,0.76402488,936.54,935.75,1.5867839]
[1768400054329,0.76402488,936.53,935.75,1.5867839]
[1768400054630,0.76402488,936.52,935.75,1.5867839]
[1768400054825,0.76402488,936.51,935.75,1.5867839]
[1768400055026,0.76402488,936.5,935.75,1.5867839]
[1768400055230,0.76402488,936.49,935.76,1.5867839]
[1768400055529,0.76402488,936.48,935.76,1.5867839]
[1768400055726,0.76402488,936.47,935.76,1.5867839]
[1768400056029,0.76402488,936.46,935.76,1.5867839]
[1768400056229,0.76402488,936.45,935.76,1.5867839]
[1768400056530,0.76402488,936.44,935.76,1.5867839]
[1768400056725,0.76402488,936.43,935.76,1.5867839]
[1768400057029,0.76402488,936.42,935.76,1.5867839]
[1768400057231,0.76402488,936.41,935.76,1.5867839]
[1768400057429,0.76402488,936.4,935.76,1.5867839]
[1768400057630,0.76402488,936.39,935.76,1.5867839]
[1768400057829,0.76402488,936.38,935.76,1.5867839]
[1768400058125,0.76402488,936.37,935.76,1.5867839]
[1768400058326,0.76402488,936.36,935.76,1.5867839]
[1768400058529,0.76402488,936.35,935.76,1.5867839]
[1768400058825,0.76402488,936.34,935.76,1.5867839]
[1768400059125,0.76402488,936.33,935.76,1.5867839]
[1768400059330,1.804,936.69,935.76,1.5867839]
[1768400059630,0.7646887,936.68,935.76,1.5867839]
[1768400059830,0.7646887,936.67,935.76,1.5867839]
[1768400060126,0.7646887,936.66,935.76,1.5867839]